lending/lending_fUSD_20241212
["ID","MTS","AMOUNT","RATE_DAILY","PERIOD"]
[345090447,1734003038156,-435.44,0.00017577,2]
[345090448,1734003038166,-3766.6521,0.00017577,2]
[345090449,1734003038176,-5000.0,0.00017577,2]
[345090450,1734003038186,-176.03573414,0.00017578,2]
[345090451,1734003038197,-161.70546444,0.00017578,2]
[345090452,1734003038207,-261.0,0.000176,5]
[345090453,1734003038217,-2218.68,0.000176,31]
[345090454,1734003038227,-2218.68,0.000176,31]
[345090455,1734003038237,-2218.68,0.000176,31]
[345090456,1734003038247,-1000.0,0.000176,6]
[345090457,1734003038256,-246.52763499,0.00017673,2]
[345090458,1734003038267,-500.0,0.00017675,2]
[345090459,1734003038275,-1000.0,0.00017676,2]
[345090460,1734003038284,-1000.0,0.00017676,2]
[345090461,1734003038293,-1000.0,0.00017676,2]
[345090462,1734003038304,-1000.0,0.00017676,2]
[345090463,1734003038312,-1000.0,0.00017676,2]
[345090464,1734003038320,-1000.0,0.00017676,2]
[345090465,1734003038329,-1000.0,0.00017676,2]
[345090466,1734003038337,-1000.0,0.00017676,2]
[345090467,1734003038345,-1000.0,0.00017676,2]
[345090468,1734003038354,-1000.0,0.00017676,2]
[345090469,1734003038362,-1000.0,0.00017676,2]
[345090470,1734003038372,-1000.0,0.00017676,2]
[345090471,1734003038381,-1000.0,0.00017676,2]
[345090472,1734003038389,-1000.0,0.00017676,2]
[345090473,1734003038398,-1000.0,0.00017676,2]
[345090474,1734003038407,-1000.0,0.00017676,2]
[345090475,1734003038416,-1000.0,0.00017676,2]
[345090476,1734003038424,-1000.0,0.00017676,2]
[345090477,1734003038432,-1000.0,0.00017676,2]
[345090478,1734003038441,-1000.0,0.00017676,2]
[345090479,1734003038449,-1000.0,0.00017676,2]
[345090480,1734003038457,-1000.0,0.00017676,2]
[345090481,1734003038466,-1000.0,0.00017676,2]
[345090482,1734003038474,-1000.0,0.00017676,2]
[345090483,1734003038482,-1000.0,0.00017676,2]
[345090484,1734003038491,-1000.0,0.00017676,2]
[345090485,1734003038499,-1000.0,0.00017676,2]
[345090486,1734003038508,-1000.0,0.00017676,2]
[345090487,1734003038517,-1000.0,0.00017676,2]
[345090488,1734003038527,-1000.0,0.00017676,2]
[345090489,1734003038536,-172.0,0.00017676,2]
[345090490,1734003038546,-598.636467,0.00017676,2]
[345090491,1734003038559,-598.636467,0.00017676,2]
[345090492,1734003038568,-305.578551,0.00017676,2]
[345090493,1734003038578,-305.578551,0.00017676,2]
[345090494,1734003038587,-151.0,0.00017676,2]
[345090495,1734003038601,-225.071154,0.00017676,2]
[345090496,1734003038610,-151.0,0.00017676,2]
[345090497,1734003038620,-189.821119,0.00017676,2]
[345090498,1734003038630,-189.821119,0.00017676,2]
[345090499,1734003038640,-271.529893,0.00017676,2]
[345090500,1734003038649,-271.529893,0.00017676,2]
[345090501,1734003038658,-151.0,0.00017676,2]
[345090502,1734003038668,-500.0,0.00017676,2]
[345090503,1734003038677,-500.0,0.00017676,2]
[345090504,1734003038687,-372.01282025,0.00017676,2]
[345090505,1734003038696,-500.0,0.00017676,2]
[345090506,1734003038706,-391.4537897,0.00017676,2]
[345090507,1734003038715,-299.387822,0.00017676,2]
[345090508,1734003038725,-299.387822,0.00017676,2]
[345090509,1734003038735,-151.0,0.00017676,2]
[345090510,1734003038744,-500.0,0.00017676,2]
[345090511,1734003038754,-151.0,0.00017676,2]
[345090512,1734003038763,-356.147406,0.00017676,2]
[345090513,1734003038771,-356.147406,0.00017676,2]
[345090514,1734003038780,-10000.0,0.00017676,2]
[345090515,1734003038792,-10000.0,0.00017676,2]
[345090516,1734003038805,-10000.0,0.00017676,2]
[345090517,1734003038813,-260.66967132,0.00017676,2]
[345090518,1734003038821,-500.0,0.00017676,2]
[345090519,1734003038831,-500.0,0.00017676,2]
[345090520,1734003038840,-194.71,0.00017676,2]
[345090521,1734003038850,-285.46,0.00017676,2]
[345090522,1734003038859,-151.0,0.00017676,2]
[345090523,1734003038869,-2179.44395361,0.00017676,2]
[345090524,1734003038883,-2391.08604639,0.00017676,2]
[345090525,1734003038893,-151.0,0.00017676,2]
[345090526,1734003038903,-500.0,0.00017676,2]
[345090527,1734003038912,-151.0,0.00017676,2]
[345090528,1734003038922,-151.0,0.00017676,2]
[345090529,1734003038932,-151.0,0.00017676,2]
[345090530,1734003038941,-1880.776119,0.00017676,2]
[345090531,1734003038954,-151.0,0.00017676,2]
[345090532,1734003038964,-1880.776119,0.00017676,2]
[345090533,1734003038974,-500.0,0.00017676,2]
[345090534,1734003038983,-569.048648,0.00017676,2]
[345090535,1734003038993,-569.048648,0.00017676,2]
[345090536,1734003039003,-569.048648,0.00017676,2]
[345090537,1734003039012,-569.048648,0.00017676,2]
[345090538,1734003039023,-157.4789,0.00017676,2]
[345090539,1734003039032,-157.4789,0.00017676,2]
[345090540,1734003039042,-682.73876,0.00017676,2]
[345090541,1734003039054,-682.73876,0.00017676,2]
[345090542,1734003039064,-500.26795847,0.00017676,2]
[345090543,1734003039074,-158.107665,0.00017676,2]
[345090544,1734003039083,-500.0,0.00017676,2]
[345090545,1734003039093,-500.0,0.00017676,2]
[345090546,1734003039103,-500.0,0.00017676,2]
[345090547,1734003039113,-500.40210588,0.00017676,2]
[345090548,1734003039123,-500.0,0.00017676,2]
[345090549,1734003039133,-265.15896026,0.00017676,2]
[345090550,1734003039143,-160.62123567,0.00017676,2]
[345090551,1734003039153,-1019.412759,0.00017676,2]
[345090552,1734003039163,-1019.412759,0.00017676,2]
[345090553,1734003039172,-1019.412759,0.00017676,2]
[345090554,1734003039182,-1019.412759,0.00017676,2]
[345090555,1734003039192,-15.23544233,0.00017676,2]
[345090556,1734003039205,-321.11686867,0.00017676,2]
[345090557,1734003039215,-336.352311,0.00017676,2]
[345090558,1734003039224,-336.352311,0.00017676,2]
[345090559,1734003039234,-500.0,0.00017676,2]
[345090560,1734003039244,-336.352311,0.00017676,2]
[345090561,1734003039253,-500.77660829,0.00017676,2]
[345090562,1734003039263,-500.0,0.00017676,2]
[345090563,1734003039273,-549.75048674,0.00017676,2]
[345090565,1734003039283,-500.0,0.00017676,2]
[345090566,1734003039292,-333.83195515,0.00017676,2]
[345090567,1734003039303,-500.0,0.00017676,2]
[345090568,1734003039313,-500.0,0.00017676,2]
[345090569,1734003039322,-500.0,0.00017676,2]
[345090570,1734003039332,-500.0,0.00017676,2]
[345090571,1734003039342,-500.0,0.00017676,2]
[345090572,1734003039351,-449.96578769,0.00017676,2]
[345090573,1734003039361,-500.0,0.00017676,2]
[345090574,1734003039371,-500.0,0.00017676,2]
[345090575,1734003039381,-500.0,0.00017676,2]
[345090576,1734003039391,-500.0,0.00017676,2]
[345090577,1734003039401,-500.0,0.00017676,2]
[345090578,1734003039410,-500.0,0.00017676,2]
[345090579,1734003039419,-171.143499,0.00017676,2]
[345090580,1734003039429,-171.143499,0.00017676,2]
[345090581,1734003039439,-171.143499,0.00017676,2]
[345090582,1734003039448,-171.143499,0.00017676,2]
[345090583,1734003039458,-402.734135,0.00017676,2]
[345090584,1734003039468,-500.0,0.00017676,2]
[345090585,1734003039477,-500.0,0.00017676,2]
[345090586,1734003039486,-402.734135,0.00017676,2]
[345090587,1734003039497,-1352.547703,0.00017676,2]
[345090588,1734003039507,-500.0,0.00017676,2]
[345090589,1734003039517,-500.0,0.00017676,2]
[345090590,1734003039528,-1352.547703,0.00017676,2]
[345090591,1734003039537,-500.0,0.00017676,2]
[345090592,1734003039547,-310.868798,0.00017676,2]
[345090593,1734003039559,-310.868798,0.00017676,2]
[345090594,1734003039569,-310.868798,0.00017676,2]
[345090595,1734003039579,-310.868798,0.00017676,2]
[345090596,1734003039591,-795.241078,0.00017676,2]
[345090597,1734003039602,-795.241078,0.00017676,2]
[345090598,1734003039613,-500.0,0.00017676,2]
[345090599,1734003039626,-500.0,0.00017676,2]
[345090600,1734003039638,-500.0,0.00017676,2]
[345090601,1734003039649,-500.0,0.00017676,2]
[345090602,1734003039660,-500.0,0.00017676,2]
[345090603,1734003039671,-177.859466,0.00017676,2]
[345090604,1734003039681,-177.859466,0.00017676,2]
[345090605,1734003039692,-174.62196071,0.00017676,2]
[345090609,1734003042839,-3.23750529,0.00017676,2]
[345090610,1734003042851,-177.859466,0.00017676,2]
[345090611,1734003042863,-500.0,0.00017676,2]
[345090612,1734003042875,-439.37965871,0.00017676,2]
[345090613,1734003042887,-60.62034129,0.00017676,2]
[345090614,1734003042898,-500.0,0.00017676,2]
[345090615,1734003042911,-500.0,0.00017676,2]
[345090616,1734003042922,-155.67,0.00017676,2]
[345090617,1734003042933,-1102.1,0.00017676,2]
[345090618,1734003042945,-619.19,0.00017676,2]
[345090619,1734003042958,-573.98,0.00017676,2]
[345090620,1734003042969,-500.0,0.00017676,2]
[345090621,1734003042980,-500.0,0.00017676,2]
[345090622,1734003042990,-319.923215,0.00017676,2]
[345090623,1734003043002,-319.923215,0.00017676,2]
[345090624,1734003043014,-500.0,0.00017676,2]
[345090625,1734003043025,-270.34682656,0.00017676,2]
[345090626,1734003043040,-49.57638844,0.00017676,2]
[345090627,1734003043052,-319.923215,0.00017676,2]
[345090628,1734003043068,-500.0,0.00017676,2]
[345090629,1734003043079,-500.0,0.00017676,2]
[345090631,1734003043090,-522.0,0.00017676,2]
[345090633,1734003043101,-183.735852,0.00017676,2]
[345090634,1734003043112,-183.735852,0.00017676,2]
[345090635,1734003043122,-1182.83,0.00017676,2]
[345090636,1734003043132,-175.432897,0.00017676,2]
[345090638,1734003043142,-175.432897,0.00017676,2]
[345090640,1734003043152,-183.735852,0.00017676,2]
[345090641,1734003043162,-183.735852,0.00017676,2]
[345090642,1734003043173,-362.691186,0.00017676,2]
[345090643,1734003043185,-362.691186,0.00017676,2]
[345090644,1734003043198,-175.432897,0.00017676,2]
[345090646,1734003043208,-175.432897,0.00017676,2]
[345090647,1734003043218,-362.691186,0.00017676,2]
[345090648,1734003043228,-362.691186,0.00017676,2]
[345090649,1734003043238,-194.62999359,0.00017676,2]
[345090665,1734003045472,-502.25175,0.00016239,2]
[345090666,1734003045513,-362.43625297,0.00016239,2]
[345090667,1734003045557,-234.31199703,0.00016239,2]
[345090668,1734003045568,-25.94271941,0.00017676,2]
[345090669,1734003045578,-500.0,0.00017676,2]
[345090670,1734003045589,-151.0,0.00017676,2]
[345090671,1734003045599,-151.0,0.00017676,2]
[345090672,1734003045610,-999.5,0.00017676,2]
[345090673,1734003045620,-341.20608686,0.00017676,2]
[345090674,1734003045891,-658.29391314,0.00017676,2]
[345090675,1734003045903,-438.70606483,0.00017676,2]
[345090676,1734003045916,-560.79393517,0.00017676,2]
[345090677,1734003045927,-999.5,0.00017676,2]
[345090678,1734003045939,-1447.570576,0.00017676,2]
[345090679,1734003045951,-1447.570576,0.00017676,2]
[345090680,1734003045963,-1447.570576,0.00017676,2]
[345090681,1734003045974,-1447.570576,0.00017676,2]
[345090682,1734003045984,-1447.570576,0.00017676,2]
[345090683,1734003045995,-500.0,0.00017676,2]
[345090684,1734003046006,-231.52137828,0.00017676,2]
[345090685,1734003046016,-502.83180655,0.00017676,2]
[345090689,1734003688563,-156.19,0.00013699,2]
[345090690,1734003688584,-1843.81,0.00015,2]
[345090692,1734004054414,-901.87,0.00016979,30]
[345090693,1734004068296,-2160.63,0.000176,31]
[345090694,1734004068323,-791.5,0.000176,31]
[345090698,1734004182269,-2000.0,0.0001488,2]
[345090699,1734004182290,-500.0,0.0001488,2]
[345090700,1734004186923,334.05937249,0.0001478,2]
[345090701,1734004197188,-231.19,0.00015,2]
[345090702,1734004197213,-1033.56835867,0.00015,2]
[345090703,1734004197237,-2287.18226884,0.00015,2]
[345090712,1734004231935,-5074.81773116,0.00015,2]
[345090713,1734004231945,-1000.0,0.00016427,2]
[345090714,1734004231955,-194.05,0.00016468,2]
[345090715,1734004231964,-250.0,0.00016468,2]
[345090716,1734004231974,-200.0,0.00016473,2]
[345090717,1734004231984,-186.48,0.00016505,2]
[345090718,1734004231994,-250.0,0.00016542,2]
[345090719,1734004232003,-204.63,0.00016652,2]
[345090720,1734004232013,-300.0,0.00016775,2]
[345090721,1734004232023,-4974.82,0.00016776,2]
[345090722,1734004232032,-2751.0,0.00016862,2]
[345090723,1734004232042,-212.3,0.00016885,2]
[345090724,1734004232052,-1574.044,0.00016979,2]
[345090725,1734004232062,-179.441,0.00016979,2]
[345090726,1734004232072,-3861.46674493,0.00017,2]
[345090727,1734004232084,-1814.53325507,0.00017,2]
[345090728,1734004232093,-13855.283048,0.00017,2]
[345090729,1734004232103,-10281.87059017,0.00017,2]
[345090730,1734004232112,-435.5,0.00017096,2]
[345090731,1734004232125,-150.0,0.00017096,2]
[345090732,1734004232135,-975.22,0.00017096,2]
[345090733,1734004232145,-975.22,0.00017096,2]
[345090734,1734004232154,-428.15146824,0.00017334,2]
[345090735,1734004232164,-1600.0,0.00017534,2]
[345090736,1734004232174,-2500.0,0.00017575,2]
[345090737,1734004232183,-220.0,0.00017576,2]
[345090738,1734004232193,-176.03573412,0.00017578,2]
[345090739,1734004232203,-248.0,0.000176,5]
[345090740,1734004232213,-1369.13,0.000176,31]
[345090741,1734004232223,-2160.63,0.000176,31]
[345090742,1734004232233,-2160.63,0.000176,31]
[345090743,1734004232242,-2160.63,0.000176,31]
[345090744,1734004232251,-2160.63,0.000176,31]
[345090745,1734004232262,-1778.54885405,0.000176,31]
[345090746,1734004232274,-382.08114595,0.000176,31]
[345090747,1734004232284,-602.72676586,0.000176,31]
[345090750,1734004232303,-1110.52698775,0.000176,31]
[345090756,1734004237681,-745.402,0.00016239,2]
[345090757,1734004237691,-447.37624639,0.000176,31]
[345090758,1734004237700,-2160.63,0.000176,31]
[345090759,1734004237710,-2160.63,0.000176,31]
[345090760,1734004237719,-455.96175361,0.000176,31]
[345090761,1734004237868,-474.16000001,0.000176,31]
[345090762,1734004237881,-1230.50824638,0.000176,31]
[345090763,1734004237891,-2160.63,0.000176,31]
[345090764,1734004237900,-2160.63,0.000176,31]
[345090765,1734004237910,-2160.63,0.000176,31]
[345090766,1734004237920,-2160.63,0.000176,31]
[345090767,1734004237929,-2160.63,0.000176,31]
[345090768,1734004237939,-3566.34175362,0.000176,4]
[345090769,1734004237951,-1434.02310611,0.000176,4]
[345090770,1734004237961,-1200.0,0.000176,6]
[345090771,1734004237971,-200.0,0.000176,6]
[345090772,1734004237980,-695.56,0.00017675,2]
[345090773,1734004237990,-500.0,0.00017675,2]
[345090774,1734004237999,-500.0,0.00017675,2]
[345090775,1734004238009,-500.0,0.00017675,2]
[345090776,1734004238018,-500.0,0.00017675,2]
[345090777,1734004238027,-641.90434435,0.00017675,2]
[345090778,1734004238037,-500.0,0.00017675,2]
[345090779,1734004238046,-578.25412649,0.00017675,2]
[345090780,1734004238055,-500.0,0.00017675,2]
[345090781,1734004238065,-500.0,0.00017675,2]
[345090782,1734004238074,-500.0,0.00017675,2]
[345090783,1734004238084,-500.0,0.00017675,2]
[345090784,1734004238093,-314.46549994,0.00017675,2]
[345090785,1734004238103,-501.6334393,0.00017675,2]
[345090786,1734004238111,-500.0,0.00017675,2]
[345090787,1734004238121,-504.40650971,0.00017675,2]
[345090789,1734004238131,-503.10076247,0.00017675,2]
[345090791,1734004238140,-359.47476242,0.00017675,2]
[345090793,1734004238150,-591.45365784,0.00017675,2]
[345090795,1734004238159,-415.40112467,0.00017675,2]
[345090797,1734004238168,-500.0,0.00017675,2]
[345090799,1734004238178,-500.0,0.00017675,2]
[345090800,1734004238187,-500.0,0.00017675,2]
[345090801,1734004238196,-500.0,0.00017675,2]
[345090802,1734004238205,-364.23574557,0.00017675,2]
[345090803,1734004238215,-500.0,0.00017675,2]
[345090804,1734004238224,-500.0,0.00017675,2]
[345090805,1734004238234,-500.0,0.00017675,2]
[345090806,1734004238243,-500.0,0.00017675,2]
[345090807,1734004238252,-375.34012439,0.00017675,2]
[345090808,1734004238262,-500.0,0.00017675,2]
[345090809,1734004238272,-500.0,0.00017675,2]
[345090810,1734004238282,-6129.99598424,0.00017675,2]
[345090811,1734004238294,-3077.20955761,0.00017675,2]
[345090812,1734004238310,-3754.28616765,0.00017675,2]
[345090813,1734004238320,-524.64671224,0.00017675,2]
[345090814,1734004238334,-608.69,0.00017675,2]
[345090815,1734004238343,-500.0,0.00017675,2]
[345090816,1734004238354,-500.0,0.00017675,2]
[345090817,1734004238364,-561.59831269,0.00017675,2]
[345090818,1734004238375,-500.0,0.00017675,2]
[345090819,1734004238384,-501.69338046,0.00017675,2]
[345090820,1734004238394,-282.40663062,0.00017675,2]
[345090821,1734004238404,-500.0,0.00017675,2]
[345090822,1734004238413,-4380.09,0.00017675,2]
[345090823,1734004238422,-4380.09,0.00017675,2]
[345090824,1734004238432,-4380.09,0.00017675,2]
[345090825,1734004238441,-500.40986044,0.00017675,2]
[345090826,1734004238451,-500.0,0.00017675,2]
[345090827,1734004238460,-500.0,0.00017675,2]
[345090828,1734004238470,-500.0,0.00017675,2]
[345090829,1734004238479,-122.20795861,0.00017675,2]
[345090837,1734004242919,-220.0,0.00017576,2]
[345090838,1734004242929,-381.15228833,0.00017675,2]
[345090839,1734004242938,-500.0,0.00017675,2]
[345090840,1734004242947,-500.0,0.00017675,2]
[345090841,1734004242957,-288.57,0.00017675,2]
[345090842,1734004242966,-456.82,0.00017675,2]
[345090843,1734004242976,-500.0,0.00017675,2]
[345090844,1734004242986,-243.40220533,0.00017675,2]
[345090845,1734004242998,-256.59779467,0.00017675,2]
[345090846,1734004243008,-500.0,0.00017675,2]
[345090847,1734004243018,-500.0,0.00017675,2]
[345090848,1734004243027,-500.0,0.00017675,2]
[345090849,1734004243037,-500.0,0.00017675,2]
[345090850,1734004243047,-500.0,0.00017675,2]
[345090851,1734004243057,-500.0,0.00017675,2]
[345090852,1734004243066,-500.0,0.00017675,2]
[345090853,1734004243075,-554.99,0.00017675,2]
[345090854,1734004243085,-546.14,0.00017675,2]
[345090855,1734004243094,-500.0,0.00017675,2]
[345090856,1734004243104,-500.0,0.00017675,2]
[345090857,1734004243114,-500.0,0.00017675,2]
[345090858,1734004243123,-500.0,0.00017675,2]
[345090859,1734004243135,-500.0,0.00017675,2]
[345090860,1734004243145,-500.0,0.00017675,2]
[345090861,1734004243154,-6.27220532,0.00017675,2]
[345090862,1734004243166,-493.72779468,0.00017675,2]
[345090863,1734004243175,-500.0,0.00017675,2]
[345090864,1734004243184,-92.55686232,0.00017675,2]
[345090865,1734004243199,-407.44313768,0.00017675,2]
[345090866,1734004243210,-500.0,0.00017675,2]
[345090867,1734004243219,-500.0,0.00017675,2]
[345090868,1734004243228,-458.67185088,0.00017675,2]
[345090869,1734004243238,-151.32,0.00017675,2]
[345090870,1734004243247,-500.0,0.00017675,2]
[345090871,1734004243256,-517.61,0.00017675,2]
[345090872,1734004243266,-500.0,0.00017675,2]
[345090874,1734004243275,-500.0,0.00017675,2]
[345090875,1734004243285,-500.0,0.00017675,2]
[345090876,1734004243295,-500.0,0.00017675,2]
[345090877,1734004243304,-631.77,0.00017675,2]
[345090878,1734004243314,-500.0,0.00017675,2]
[345090879,1734004243324,-500.0,0.00017675,2]
[345090880,1734004243336,-500.0,0.00017675,2]
[345090881,1734004243345,-500.0,0.00017675,2]
[345090882,1734004243355,-477.72775585,0.00017675,2]
[345090883,1734004243364,-413.14307035,0.00017675,2]
[345090884,1734004243375,-500.0,0.00017675,2]
[345090885,1734004243385,-500.0,0.00017675,2]
[345090886,1734004243395,-500.0,0.00017675,2]
[345090887,1734004243405,-500.0,0.00017675,2]
[345090888,1734004243415,-500.0,0.00017675,2]
[345090889,1734004243424,-500.0,0.00017675,2]
[345090890,1734004243433,-1056.18,0.00017675,2]
[345090891,1734004243443,-1056.18,0.00017675,2]
[345090892,1734004243455,-274.24,0.00017675,2]
[345090893,1734004243465,-500.0,0.00017675,2]
[345090894,1734004243474,-274.24,0.00017675,2]
[345090895,1734004243483,-500.0,0.00017675,2]
[345090896,1734004243493,-274.24,0.00017675,2]
[345090897,1734004243502,-500.0,0.00017675,2]
[345090898,1734004243511,-500.0,0.00017675,2]
[345090899,1734004243521,-500.0,0.00017675,2]
[345090900,1734004243531,-153.157333,0.00017675,2]
[345090901,1734004243541,-550.07,0.00017675,2]
[345090902,1734004243550,-550.07,0.00017675,2]
[345090903,1734004243560,-550.07,0.00017675,2]
[345090904,1734004243570,-1133.55,0.00017675,2]
[345090905,1734004243579,-1133.55,0.00017675,2]
[345090906,1734004243589,-1133.55,0.00017675,2]
[345090907,1734004243598,-6817.42253637,0.00017675,2]
[345090908,1734004243610,-3182.57746363,0.00017675,2]
[345090909,1734004243619,-500.0,0.00017675,2]
[345090910,1734004243629,-500.0,0.00017675,2]
[345090911,1734004243640,-360.92,0.00017675,2]
[345090912,1734004243649,-8883.46294654,0.00017675,2]
[345090913,1734004243715,-1116.53705346,0.00017675,2]
[345090914,1734004243725,-3702.16013397,0.00017675,2]
[345090917,1734004245910,-1107.31,0.00015512,2]
[345090918,1734004245920,-6297.83986603,0.00017675,2]
[345090919,1734004245930,-232.909242,0.00017675,2]
[345090920,1734004245939,-232.909242,0.00017675,2]
[345090921,1734004245949,-232.909242,0.00017675,2]
[345090922,1734004245959,-232.909242,0.00017675,2]
[345090923,1734004245967,-248.695038,0.00017675,2]
[345090924,1734004245977,-248.695038,0.00017675,2]
[345090925,1734004245987,-248.695038,0.00017675,2]
[345090926,1734004245996,-248.695038,0.00017675,2]
[345090927,1734004246005,-261.53171843,0.00017675,2]
[345090928,1734004246014,-268.44224415,0.00017675,2]
[345090929,1734004246023,-951.19,0.00017675,2]
[345090930,1734004246032,-951.19,0.00017675,2]
[345090931,1734004246041,-951.19,0.00017675,2]
[345090932,1734004246051,-832.92,0.00017675,2]
[345090933,1734004246061,-832.92,0.00017675,2]
[345090934,1734004246070,-500.0,0.00017675,2]
[345090935,1734004246086,-500.0,0.00017675,2]
[345090936,1734004246099,-151.0,0.00017675,2]
[345090937,1734004246109,-151.0,0.00017675,2]
[345090938,1734004246118,-151.0,0.00017675,2]
[345090939,1734004246128,-500.0,0.00017675,2]
[345090940,1734004246138,-500.0,0.00017675,2]
[345090941,1734004246148,-500.0,0.00017675,2]
[345090942,1734004246158,-500.0,0.00017675,2]
[345090943,1734004246167,-500.0,0.00017675,2]
[345090944,1734004246177,-500.0,0.00017675,2]
[345090945,1734004246186,-848.3,0.00017675,2]
[345090946,1734004246196,-848.3,0.00017675,2]
[345090947,1734004246206,-848.3,0.00017675,2]
[345090948,1734004246215,-848.3,0.00017675,2]
[345090949,1734004246224,-500.0,0.00017675,2]
[345090950,1734004246234,-500.0,0.00017675,2]
[345090951,1734004246243,-500.0,0.00017675,2]
[345090952,1734004246253,-290.152948,0.00017675,2]
[345090953,1734004246262,-500.0,0.00017675,2]
[345090954,1734004246272,-500.0,0.00017675,2]
[345090955,1734004246281,-491.14,0.00017675,2]
[345090956,1734004246290,-290.152948,0.00017675,2]
[345090957,1734004246300,-151.0,0.00017675,2]
[345090958,1734004246309,-151.0,0.00017675,2]
[345090959,1734004246319,-151.0,0.00017675,2]
[345090960,1734004246328,-290.152948,0.00017675,2]
[345090961,1734004246342,-290.152948,0.00017675,2]
[345090962,1734004246351,-151.0,0.00017675,2]
[345090963,1734004246361,-269.043827,0.00017675,2]
[345090964,1734004246371,-151.0,0.00017675,2]
[345090965,1734004246382,-500.0,0.00017675,2]
[345090966,1734004246391,-151.0,0.00017675,2]
[345090967,1734004246401,-500.0,0.00017675,2]
[345090968,1734004246412,-151.0,0.00017675,2]
[345090969,1734004246422,-1000.0,0.00017675,2]
[345090970,1734004246431,-1000.0,0.00017675,2]
[345090971,1734004246440,-983.65,0.00017675,2]
[345090972,1734004246450,-500.0,0.00017675,2]
[345090973,1734004246459,-500.0,0.00017675,2]
[345090974,1734004246469,-500.0,0.00017675,2]
[345090975,1734004246479,-151.0,0.00017675,2]
[345090976,1734004246489,-500.0,0.00017675,2]
[345090977,1734004246498,-473.37325225,0.00017675,2]
[345090978,1734004246507,-151.0,0.00017675,2]
[345090979,1734004246517,-151.0,0.00017675,2]
[345090980,1734004246526,-500.0,0.00017675,2]
[345090981,1734004246535,-500.0,0.00017675,2]
[345090982,1734004246545,-159.33,0.00017675,2]
[345090983,1734004246555,-151.0,0.00017675,2]
[345090984,1734004246564,-151.0,0.00017675,2]
[345090985,1734004246573,-151.0,0.00017675,2]
[345090986,1734004246582,-151.0,0.00017675,2]
[345090987,1734004246593,-200.603205,0.00017675,2]
[345090988,1734004246602,-338.46875943,0.00017675,2]
[345090989,1734004246612,-1060.536342,0.00017675,2]
[345090990,1734004246621,-1060.536342,0.00017675,2]
[345090991,1734004246631,-1060.536342,0.00017675,2]
[345090992,1734004246641,-479.47945827,0.00017675,2]
[345090993,1734004246650,-1060.536342,0.00017675,2]
[345090994,1734004246660,-1060.536342,0.00017675,2]
[345090995,1734004246670,-1060.536342,0.00017675,2]
[345090996,1734004246679,-251.30004658,0.00017675,2]
[345090997,1734004246689,-500.0,0.00017675,2]
[345090998,1734004246698,-500.0,0.00017675,2]
[345090999,1734004246707,-263.59780825,0.00017675,2]
[345091000,1734004246717,-501.45162454,0.00017675,2]
[345091001,1734004246727,-500.0,0.00017675,2]
[345091002,1734004246736,-500.0,0.00017675,2]
[345091003,1734004246745,-530.37279759,0.00017675,2]
[345091004,1734004246755,-500.0,0.00017675,2]
[345091005,1734004246764,-500.0,0.00017675,2]
[345091006,1734004246773,-500.0,0.00017675,2]
[345091007,1734004246783,-263.42695731,0.00017675,2]
[345091008,1734004246792,-614.464884,0.00017675,2]